[Event "Early-Titled-Tuesday-Blitz-February-27-2024"]
[Site "Chess.com"]
[Date "2024.02.27"]
[Round "4"]
[White "Canal_Showdrez"]
[Black "Barbix1"]
[Result "0-1"]
[WhiteElo "1982"]
[BlackElo "2275"]
[TimeControl "180+1"]
[EndTime "8:39:11 PST"]
[Termination "Barbix1 won by resignation"]

1. d4 {[%clk 0:03:00.9]} 1... Nf6 {[%clk 0:02:59.6]} 2. Nf3 {[%clk 0:03:00.5]}
2... d5 {[%clk 0:02:59]} 3. e3 {[%clk 0:02:59.8]} 3... g6 {[%clk 0:02:58.1]} 4.
Bd3 {[%clk 0:02:59.2]} 4... Bg7 {[%clk 0:02:58]} 5. O-O {[%clk 0:02:58.6]} 5...
O-O {[%clk 0:02:58.3]} 6. Nbd2 {[%clk 0:02:58.6]} 6... c5 {[%clk 0:02:58.1]} 7.
b3 {[%clk 0:02:58.7]} 7... cxd4 {[%clk 0:02:56.2]} 8. exd4 {[%clk 0:02:58.3]}
8... Nc6 {[%clk 0:02:37.1]} 9. Bb2 {[%clk 0:02:55.6]} 9... Bg4 {[%clk
0:02:34.2]} 10. Qb1 {[%clk 0:02:54.9]} 10... Rc8 {[%clk 0:02:17.6]} 11. a3
{[%clk 0:02:54]} 11... Qd6 {[%clk 0:01:24.2]} 12. Re1 {[%clk 0:02:48.1]} 12...
Rfe8 {[%clk 0:01:16.9]} 13. Ne5 {[%clk 0:02:47.2]} 13... Bf5 {[%clk 0:01:11.6]}
14. Bxf5 {[%clk 0:02:44.1]} 14... gxf5 {[%clk 0:01:12.5]} 15. c3 {[%clk
0:02:40.5]} 15... Ne4 {[%clk 0:01:10.6]} 16. Nxe4 {[%clk 0:02:34.7]} 16... fxe4
{[%clk 0:01:03.6]} 17. Ng4 {[%clk 0:02:27.5]} 17... Qg6 {[%clk 0:00:56.6]} 18.
Qd1 {[%clk 0:02:17.1]} 18... h5 {[%clk 0:00:39.2]} 19. Ne3 {[%clk 0:02:13.6]}
19... e6 {[%clk 0:00:39.7]} 20. c4 {[%clk 0:02:08.6]} 20... Ne7 {[%clk
0:00:36.9]} 21. c5 {[%clk 0:02:05.7]} 21... Kh8 {[%clk 0:00:34.4]} 22. b4 {[%clk
0:01:55.1]} 22... Rg8 {[%clk 0:00:34.1]} 23. Kh1 {[%clk 0:01:52.5]} 23... f5
{[%clk 0:00:33.8]} 24. Rg1 {[%clk 0:01:50.8]} 24... f4 {[%clk 0:00:33.5]} 25.
Nf1 {[%clk 0:01:47.7]} 25... Rcf8 {[%clk 0:00:25]} 26. b5 {[%clk 0:01:45.1]}
26... Nf5 {[%clk 0:00:17.7]} 27. Rc1 {[%clk 0:01:32]} 27... Nh4 {[%clk
0:00:16.4]} 28. g3 {[%clk 0:01:30.5]} 28... Nf3 {[%clk 0:00:15.3]} 29. Rg2
{[%clk 0:01:28.1]} 29... Bh6 {[%clk 0:00:15.7]} 30. Rc3 {[%clk 0:01:18.7]} 30...
h4 {[%clk 0:00:15.6]} 31. Rxf3 {[%clk 0:00:48.5]} 31... exf3 {[%clk 0:00:16.5]}
32. Rg1 {[%clk 0:00:48.6]} 32... fxg3 {[%clk 0:00:16.2]} 33. fxg3 {[%clk
0:00:45.2]} 33... f2 {[%clk 0:00:16]} 34. Rg2 {[%clk 0:00:38.7]} 34... h3 {[%clk
0:00:16.1]} 35. c6 {[%clk 0:00:25.9]} 35... hxg2+ {[%clk 0:00:15.6]} 36. Kxg2
{[%clk 0:00:26.3]} 36... Qe4+ {[%clk 0:00:15.6]} 37. Kh3 {[%clk 0:00:25.3]}
37... bxc6 {[%clk 0:00:15.7]} 38. Qh5 {[%clk 0:00:21.4]} 38... Qg6 {[%clk
0:00:14.8]} 39. Qe2 {[%clk 0:00:18.8]} 39... Qf5+ {[%clk 0:00:14.7]} 40. Kg2
{[%clk 0:00:17.5]} 40... Qe4+ {[%clk 0:00:14.8]} 41. Qxe4 {[%clk 0:00:17.8]}
41... dxe4 {[%clk 0:00:15.7]} 42. d5+ {[%clk 0:00:18.6]} 42... Bg7 {[%clk
0:00:15.6]} 43. Bxg7+ {[%clk 0:00:16.1]} 43... Kxg7 {[%clk 0:00:16.5]} 44. dxc6
{[%clk 0:00:16.1]} 44... Kf6 {[%clk 0:00:16.2]} 45. a4 {[%clk 0:00:15.1]} 45...
Ke5 {[%clk 0:00:16.3]} 46. a5 {[%clk 0:00:15.5]} 46... Kd6 {[%clk 0:00:15.8]}
47. Ne3 {[%clk 0:00:14.7]} 47... Kc5 {[%clk 0:00:16]} 48. c7 {[%clk 0:00:14.2]}
48... Kxb5 {[%clk 0:00:15.6]} 49. c8=Q {[%clk 0:00:13.2]} 49... Rxc8 {[%clk
0:00:14.9]} 50. Kxf2 {[%clk 0:00:14.1]} 50... Kxa5 {[%clk 0:00:15]} 51. Ke2
{[%clk 0:00:14.3]} 51... Kb5 {[%clk 0:00:14.8]} 52. Nd1 {[%clk 0:00:11.9]} 52...
a5 {[%clk 0:00:15]} 53. Ke3 {[%clk 0:00:12.2]} 53... a4 {[%clk 0:00:14.8]} 54.
Kxe4 {[%clk 0:00:12.6]} 54... a3 {[%clk 0:00:14.5]} 55. Ke5 {[%clk 0:00:13]}
55... a2 {[%clk 0:00:14.7]} 56. Kxe6 {[%clk 0:00:13.5]} 56... a1=Q {[%clk
0:00:15]} 0-1

[Event "Early-Titled-Tuesday-Blitz-February-27-2024"]
[Site "Chess.com"]
[Date "2024.02.27"]
[Round "4"]
[White "Actuary44"]
[Black "Makswolf200817"]
[Result "0-1"]
[WhiteElo "2520"]
[BlackElo "2728"]
[TimeControl "180+1"]
[EndTime "8:39:16 PST"]
[Termination "Makswolf200817 won by checkmate"]

1. e4 {[%clk 0:03:00.9]} 1... c5 {[%clk 0:02:59]} 2. d4 {[%clk 0:03:00.9]} 2...
cxd4 {[%clk 0:02:58.7]} 3. c3 {[%clk 0:03:01.6]} 3... dxc3 {[%clk 0:02:59.6]} 4.
Nxc3 {[%clk 0:03:02.3]} 4... e6 {[%clk 0:03:00.2]} 5. f4 {[%clk 0:03:02.9]} 5...
Nc6 {[%clk 0:02:57.9]} 6. Nf3 {[%clk 0:03:03.5]} 6... Bb4 {[%clk 0:02:57.6]} 7.
Bd3 {[%clk 0:03:03.8]} 7... Nf6 {[%clk 0:02:55.4]} 8. O-O {[%clk 0:03:01.5]}
8... d5 {[%clk 0:02:37.7]} 9. e5 {[%clk 0:03:01.3]} 9... Nd7 {[%clk 0:02:19.3]}
10. Kh1 {[%clk 0:02:59.2]} 10... b6 {[%clk 0:02:08.5]} 11. a3 {[%clk 0:02:33.3]}
11... Be7 {[%clk 0:02:03.7]} 12. Qe1 {[%clk 0:02:31.7]} 12... Nc5 {[%clk
0:02:01.5]} 13. Bc2 {[%clk 0:02:29.9]} 13... Ba6 {[%clk 0:02:01.1]} 14. Rg1
{[%clk 0:02:24.7]} 14... Qc7 {[%clk 0:01:45.2]} 15. Be3 {[%clk 0:02:07.8]} 15...
Bd3 {[%clk 0:01:24.5]} 16. Bxc5 {[%clk 0:01:28.2]} 16... Bxc2 {[%clk 0:01:21.7]}
17. Nb5 {[%clk 0:01:28.4]} 17... Qd7 {[%clk 0:01:09.4]} 18. Bxe7 {[%clk
0:01:28.3]} 18... Kxe7 {[%clk 0:01:06.1]} 19. Rc1 {[%clk 0:01:14.6]} 19... Be4
{[%clk 0:01:00.7]} 20. Ng5 {[%clk 0:00:39]} 20... Bg6 {[%clk 0:00:56]} 21. Nd6
{[%clk 0:00:34.3]} 21... Nd4 {[%clk 0:00:26.6]} 22. Qb4 {[%clk 0:00:29.6]} 22...
Nc6 {[%clk 0:00:21.5]} 23. Qc3 {[%clk 0:00:27.5]} 23... Na5 {[%clk 0:00:13.3]}
24. Rgd1 {[%clk 0:00:22.9]} 24... Rhd8 {[%clk 0:00:12.7]} 25. Qb4 {[%clk
0:00:17]} 25... Nc6 {[%clk 0:00:11.1]} 26. Rxc6 {[%clk 0:00:14.7]} 26... Qxc6
{[%clk 0:00:12]} 27. Ndxf7+ {[%clk 0:00:08.4]} 27... Qc5 {[%clk 0:00:12.5]} 28.
Qxc5+ {[%clk 0:00:06.9]} 28... bxc5 {[%clk 0:00:13.4]} 29. Nxd8 {[%clk
0:00:07.3]} 29... Rxd8 {[%clk 0:00:14.3]} 30. Rc1 {[%clk 0:00:07]} 30... c4
{[%clk 0:00:14.2]} 31. Kg1 {[%clk 0:00:07.4]} 31... Rb8 {[%clk 0:00:14.8]} 32.
Nf3 {[%clk 0:00:04.4]} 32... Rxb2 {[%clk 0:00:14.8]} 33. Nd4 {[%clk 0:00:05.1]}
33... Rd2 {[%clk 0:00:13.7]} 34. Nc6+ {[%clk 0:00:04.6]} 34... Kd7 {[%clk
0:00:14.4]} 35. Nxa7 {[%clk 0:00:05.3]} 35... Rb2 {[%clk 0:00:15]} 36. a4 {[%clk
0:00:05.2]} 36... Bc2 {[%clk 0:00:10.6]} 37. Nb5 {[%clk 0:00:05.4]} 37... Bxa4
{[%clk 0:00:11]} 38. Nd4 {[%clk 0:00:04.3]} 38... Ra2 {[%clk 0:00:09]} 39. f5
{[%clk 0:00:04.6]} 39... exf5 {[%clk 0:00:08.6]} 40. Nxf5 {[%clk 0:00:05.5]}
40... Ke6 {[%clk 0:00:09.1]} 41. Nxg7+ {[%clk 0:00:05.6]} 41... Kxe5 {[%clk
0:00:09.8]} 42. Nh5 {[%clk 0:00:04.6]} 42... Rc2 {[%clk 0:00:08.3]} 43. Re1+
{[%clk 0:00:04.7]} 43... Kd4 {[%clk 0:00:08.7]} 44. Ng3 {[%clk 0:00:04.5]} 44...
Rd2 {[%clk 0:00:08.7]} 45. Nf5+ {[%clk 0:00:04.6]} 45... Kc5 {[%clk 0:00:09.2]}
46. g4 {[%clk 0:00:02.5]} 46... c3 {[%clk 0:00:09.7]} 47. g5 {[%clk 0:00:02.9]}
47... d4 {[%clk 0:00:08.4]} 48. Re5+ {[%clk 0:00:02.1]} 48... Kc4 {[%clk
0:00:06.7]} 49. Nd6+ {[%clk 0:00:02.7]} 49... Kb3 {[%clk 0:00:06.8]} 50. Ne4
{[%clk 0:00:02.7]} 50... Rd1+ {[%clk 0:00:06.3]} 51. Kf2 {[%clk 0:00:03.3]}
51... c2 {[%clk 0:00:07.1]} 52. Rc5 {[%clk 0:00:03.4]} 52... c1=Q {[%clk
0:00:07.1]} 53. Rxc1 {[%clk 0:00:03.8]} 53... Rxc1 {[%clk 0:00:08]} 54. g6
{[%clk 0:00:03.7]} 54... hxg6 {[%clk 0:00:08]} 55. Ke2 {[%clk 0:00:04.2]} 55...
Bb5+ {[%clk 0:00:08.1]} 56. Kd2 {[%clk 0:00:04.6]} 56... Rc2+ {[%clk 0:00:08.7]}
57. Kd1 {[%clk 0:00:05.2]} 57... Rxh2 {[%clk 0:00:09.4]} 58. Nc5+ {[%clk
0:00:05.4]} 58... Kc4 {[%clk 0:00:09.3]} 59. Nd7 {[%clk 0:00:05.4]} 59... Bxd7
{[%clk 0:00:09.1]} 60. Ke1 {[%clk 0:00:05.8]} 60... Kd3 {[%clk 0:00:09.2]} 61.
Kf1 {[%clk 0:00:06.2]} 61... Bc6 {[%clk 0:00:09.4]} 62. Kg1 {[%clk 0:00:07.1]}
62... Rg2+ {[%clk 0:00:08.7]} 63. Kh1 {[%clk 0:00:06.9]} 63... Rg5+ {[%clk
0:00:08]} 64. Kh2 {[%clk 0:00:07.4]} 64... Bd7 {[%clk 0:00:08.3]} 65. Kh1 {[%clk
0:00:07.5]} 65... Ke2 {[%clk 0:00:09.2]} 66. Kh2 {[%clk 0:00:08]} 66... Kf1
{[%clk 0:00:09.6]} 67. Kh1 {[%clk 0:00:08.6]} 67... Rh5# {[%clk 0:00:10.5]} 0-1

[Event "Early-Titled-Tuesday-Blitz-February-27-2024"]
[Site "Chess.com"]
[Date "2024.02.27"]
[Round "4"]
[White "bipe137"]
[Black "klimkoj"]
[Result "0-1"]
[WhiteElo "2568"]
[BlackElo "2827"]
[TimeControl "180+1"]
[EndTime "8:39:17 PST"]
[Termination "klimkoj won on time"]

1. d4 {[%clk 0:03:00]} 1... Nf6 {[%clk 0:03:00]} 2. c4 {[%clk 0:03:00.1]} 2...
g6 {[%clk 0:02:59.5]} 3. Nc3 {[%clk 0:02:59.1]} 3... Bg7 {[%clk 0:03:00.1]} 4.
e4 {[%clk 0:02:58.3]} 4... O-O {[%clk 0:03:01]} 5. Nf3 {[%clk 0:02:58.6]} 5...
d6 {[%clk 0:03:01.5]} 6. Be2 {[%clk 0:02:59.1]} 6... e5 {[%clk 0:03:00.9]} 7.
O-O {[%clk 0:02:59.2]} 7... Na6 {[%clk 0:03:01.3]} 8. Be3 {[%clk 0:02:59]} 8...
Ng4 {[%clk 0:02:57.3]} 9. Bg5 {[%clk 0:02:58.8]} 9... f6 {[%clk 0:02:57.7]} 10.
Bh4 {[%clk 0:02:59]} 10... g5 {[%clk 0:02:51.8]} 11. Bg3 {[%clk 0:02:59.1]}
11... h5 {[%clk 0:02:51.9]} 12. h3 {[%clk 0:02:57]} 12... h4 {[%clk 0:02:46.5]}
13. Bh2 {[%clk 0:02:51.4]} 13... Nxh2 {[%clk 0:02:43.6]} 14. Nxh2 {[%clk
0:02:47.7]} 14... Be6 {[%clk 0:02:37.4]} 15. d5 {[%clk 0:02:45.9]} 15... Bd7
{[%clk 0:02:37.7]} 16. Bg4 {[%clk 0:02:44.1]} 16... f5 {[%clk 0:02:30.9]} 17.
exf5 {[%clk 0:02:40]} 17... Bxf5 {[%clk 0:02:31.8]} 18. Bxf5 {[%clk 0:02:37.7]}
18... Rxf5 {[%clk 0:02:32.7]} 19. Ng4 {[%clk 0:02:35.3]} 19... Rf4 {[%clk
0:02:24]} 20. Ne3 {[%clk 0:02:32.8]} 20... Qd7 {[%clk 0:02:19.4]} 21. Qc2 {[%clk
0:02:23.8]} 21... Raf8 {[%clk 0:02:17.4]} 22. Ne4 {[%clk 0:02:20]} 22... Qe7
{[%clk 0:02:02.2]} 23. f3 {[%clk 0:02:15.8]} 23... Nc5 {[%clk 0:02:01.2]} 24. b4
{[%clk 0:02:11.3]} 24... Nd7 {[%clk 0:01:56.7]} 25. Ng4 {[%clk 0:02:06.5]} 25...
b6 {[%clk 0:01:49.2]} 26. a3 {[%clk 0:01:55.4]} 26... a5 {[%clk 0:01:44.1]} 27.
Rfd1 {[%clk 0:01:49.2]} 27... Ra8 {[%clk 0:01:30.1]} 28. Qa4 {[%clk 0:01:39.3]}
28... Nf8 {[%clk 0:01:08.6]} 29. Qc6 {[%clk 0:01:33.4]} 29... Rd8 {[%clk
0:01:07.3]} 30. bxa5 {[%clk 0:01:32.8]} 30... bxa5 {[%clk 0:01:08.2]} 31. Rab1
{[%clk 0:01:32.7]} 31... Ng6 {[%clk 0:01:08.1]} 32. Rb7 {[%clk 0:01:31.2]} 32...
Rf7 {[%clk 0:01:08]} 33. Rdb1 {[%clk 0:01:26.5]} 33... Nf4 {[%clk 0:01:07.9]}
34. Rb8 {[%clk 0:01:25]} 34... Bf8 {[%clk 0:01:03.6]} 35. R1b7 {[%clk
0:01:14.3]} 35... Ne2+ {[%clk 0:00:59.8]} 36. Kh2 {[%clk 0:01:01.3]} 36... Ng3
{[%clk 0:00:28.4]} 37. Rxd8 {[%clk 0:00:47.1]} 37... Qxd8 {[%clk 0:00:28.7]} 38.
Ra7 {[%clk 0:00:44.8]} 38... Nxe4 {[%clk 0:00:17.4]} 39. Ra8 {[%clk 0:00:44.7]}
39... Qe7 {[%clk 0:00:09]} 40. Re8 {[%clk 0:00:42.2]} 40... Qd7 {[%clk
0:00:09.6]} 41. Qxd7 {[%clk 0:00:18.4]} 41... Rxd7 {[%clk 0:00:10.5]} 42. fxe4
{[%clk 0:00:19.1]} 42... Kf7 {[%clk 0:00:10.6]} 43. Ra8 {[%clk 0:00:18.5]} 43...
c6 {[%clk 0:00:10]} 44. dxc6 {[%clk 0:00:17.6]} 44... Rc7 {[%clk 0:00:09.4]} 45.
Ra6 {[%clk 0:00:17.7]} 45... Ke6 {[%clk 0:00:08.8]} 46. Ne3 {[%clk 0:00:17.6]}
46... Rc8 {[%clk 0:00:07.8]} 47. Rb6 {[%clk 0:00:15.5]} 47... Be7 {[%clk
0:00:07.9]} 48. Nd5 {[%clk 0:00:15.3]} 48... Bd8 {[%clk 0:00:07.6]} 49. Rb7
{[%clk 0:00:15.3]} 49... Rxc6 {[%clk 0:00:07.7]} 50. g3 {[%clk 0:00:13.3]} 50...
Rxc4 {[%clk 0:00:06.8]} 51. gxh4 {[%clk 0:00:12.2]} 51... gxh4 {[%clk
0:00:07.4]} 52. Kg2 {[%clk 0:00:05.5]} 52... Rxe4 {[%clk 0:00:07.5]} 53. Nc3
{[%clk 0:00:05.8]} 53... Re3 {[%clk 0:00:07.4]} 54. Nb5 {[%clk 0:00:06]} 54...
Rb3 {[%clk 0:00:07.3]} 55. a4 {[%clk 0:00:05.9]} 55... Rb4 {[%clk 0:00:07.3]}
56. Kf3 {[%clk 0:00:05.9]} 56... Rxa4 {[%clk 0:00:07.4]} 57. Nc3 {[%clk
0:00:05.1]} 57... Ra3 {[%clk 0:00:07.4]} 0-1

[Event "Early-Titled-Tuesday-Blitz-February-27-2024"]
[Site "Chess.com"]
[Date "2024.02.27"]
[Round "4"]
[White "Aisen1011"]
[Black "ChessSwole"]
[Result "1-0"]
[WhiteElo "2472"]
[BlackElo "2689"]
[TimeControl "180+1"]
[EndTime "8:39:17 PST"]
[Termination "Aisen1011 won on time"]

1. d4 {[%clk 0:02:57.8]} 1... Nf6 {[%clk 0:02:59.6]} 2. c4 {[%clk 0:02:58.2]}
2... g6 {[%clk 0:02:59.9]} 3. Nc3 {[%clk 0:02:58.4]} 3... d5 {[%clk 0:03:00]} 4.
Nf3 {[%clk 0:02:56.2]} 4... Bg7 {[%clk 0:02:59.5]} 5. Bg5 {[%clk 0:02:55.8]}
5... Ne4 {[%clk 0:02:59]} 6. cxd5 {[%clk 0:02:55.8]} 6... Nxg5 {[%clk
0:02:58.7]} 7. Nxg5 {[%clk 0:02:56.7]} 7... e6 {[%clk 0:02:58.6]} 8. Qd2 {[%clk
0:02:57]} 8... exd5 {[%clk 0:02:58]} 9. Qe3+ {[%clk 0:02:57.6]} 9... Kf8 {[%clk
0:02:58.6]} 10. Qf4 {[%clk 0:02:58]} 10... Bf6 {[%clk 0:02:58.7]} 11. h4 {[%clk
0:02:58.7]} 11... h6 {[%clk 0:02:51.6]} 12. Nf3 {[%clk 0:02:58.1]} 12... Kg7
{[%clk 0:02:50.3]} 13. e3 {[%clk 0:02:57]} 13... c6 {[%clk 0:02:47.7]} 14. Bd3
{[%clk 0:02:56.5]} 14... h5 {[%clk 0:02:47.3]} 15. Ng5 {[%clk 0:02:35.3]} 15...
Nd7 {[%clk 0:02:31.9]} 16. f3 {[%clk 0:02:28.1]} 16... Nf8 {[%clk 0:02:30.6]}
17. O-O-O {[%clk 0:02:22.3]} 17... b5 {[%clk 0:02:20.6]} 18. g4 {[%clk
0:02:21.5]} 18... hxg4 {[%clk 0:02:16.2]} 19. fxg4 {[%clk 0:02:19.6]} 19... Rxh4
{[%clk 0:02:06.4]} 20. Nf3 {[%clk 0:02:09.4]} 20... Ne6 {[%clk 0:01:56.6]} 21.
Qg3 {[%clk 0:02:00.1]} 21... Rxh1 {[%clk 0:01:53.4]} 22. Rxh1 {[%clk 0:02:01]}
22... Ng5 {[%clk 0:01:47.3]} 23. Nxg5 {[%clk 0:01:43]} 23... Bxg5 {[%clk
0:01:48.2]} 24. Qh3 {[%clk 0:01:43.9]} 24... Kf8 {[%clk 0:01:05]} 25. Qh8+
{[%clk 0:01:35.1]} 25... Ke7 {[%clk 0:01:04.7]} 26. Qe5+ {[%clk 0:01:30.8]}
26... Kd7 {[%clk 0:01:04.8]} 27. Nxb5 {[%clk 0:01:30.8]} 27... Be7 {[%clk
0:00:36.2]} 28. Rh8 {[%clk 0:00:43.9]} 28... Qxh8 {[%clk 0:00:27.1]} 29. Qc7+
{[%clk 0:00:22.3]} 29... Ke8 {[%clk 0:00:22.8]} 30. Qxc6+ {[%clk 0:00:16.6]}
30... Kf8 {[%clk 0:00:23.1]} 31. Qxa8 {[%clk 0:00:14.7]} 31... Qh1+ {[%clk
0:00:22.4]} 32. Kc2 {[%clk 0:00:12.8]} 32... Qg2+ {[%clk 0:00:22.6]} 33. Kb3
{[%clk 0:00:12.5]} 33... Qxg4 {[%clk 0:00:23]} 34. Nxa7 {[%clk 0:00:10.6]} 34...
Kg7 {[%clk 0:00:22.6]} 35. Qxc8 {[%clk 0:00:10.5]} 35... Qd1+ {[%clk 0:00:22.8]}
36. Qc2 {[%clk 0:00:10.5]} 36... Qe1 {[%clk 0:00:21.6]} 37. Nc6 {[%clk 0:00:11]}
37... Bd6 {[%clk 0:00:18.1]} 38. Qc3 {[%clk 0:00:10.2]} 38... Qxe3 {[%clk
0:00:16.6]} 39. a4 {[%clk 0:00:10.4]} 39... g5 {[%clk 0:00:13.2]} 40. a5 {[%clk
0:00:10.7]} 40... Qe8 {[%clk 0:00:13]} 41. a6 {[%clk 0:00:10.1]} 41... g4 {[%clk
0:00:11.5]} 42. a7 {[%clk 0:00:10.2]} 42... g3 {[%clk 0:00:11.6]} 43. Bf1 {[%clk
0:00:07.1]} 43... Qa8 {[%clk 0:00:09]} 44. Bg2 {[%clk 0:00:06.7]} 44... Qb7+
{[%clk 0:00:09.3]} 45. Kc2 {[%clk 0:00:06.6]} 45... Qa6 {[%clk 0:00:06.5]} 46.
Bxd5 {[%clk 0:00:06.5]} 46... Qe2+ {[%clk 0:00:06.3]} 47. Kb3 {[%clk 0:00:07]}
47... Qb5+ {[%clk 0:00:06.3]} 48. Ka2 {[%clk 0:00:07.2]} 48... Qxd5+ {[%clk
0:00:06.5]} 49. b3 {[%clk 0:00:06.5]} 49... g2 {[%clk 0:00:06.2]} 50. Qc1 {[%clk
0:00:05.2]} 50... Qxc6 {[%clk 0:00:01.7]} 51. Qxc6 {[%clk 0:00:06.1]} 51... g1=Q
{[%clk 0:00:02.2]} 52. a8=Q {[%clk 0:00:06.3]} 52... Qf2+ {[%clk 0:00:02.9]} 53.
Kb1 {[%clk 0:00:05.5]} 53... Qe1+ {[%clk 0:00:03.5]} 54. Qc1 {[%clk 0:00:05.9]}
54... Qe4+ {[%clk 0:00:02.6]} 55. Qxe4 {[%clk 0:00:06.1]} 55... Be7 {[%clk
0:00:02.2]} 56. Qg1+ {[%clk 0:00:06.6]} 1-0

[Event "Early-Titled-Tuesday-Blitz-February-27-2024"]
[Site "Chess.com"]
[Date "2024.02.27"]
[Round "4"]
[White "WindWhistler11"]
[Black "GeorgiosSouleidis"]
[Result "1/2-1/2"]
[WhiteElo "2495"]
[BlackElo "2714"]
[TimeControl "180+1"]
[EndTime "8:39:24 PST"]
[Termination "Game drawn by repetition"]

1. Nf3 {[%clk 0:02:54.7]} 1... Nf6 {[%clk 0:02:51.2]} 2. c4 {[%clk 0:02:54]}
2... g6 {[%clk 0:02:51.7]} 3. Nc3 {[%clk 0:02:53.8]} 3... Bg7 {[%clk 0:02:51.8]}
4. g3 {[%clk 0:02:54]} 4... d6 {[%clk 0:02:52.6]} 5. Bg2 {[%clk 0:02:54.4]} 5...
O-O {[%clk 0:02:53.5]} 6. O-O {[%clk 0:02:54.7]} 6... Nc6 {[%clk 0:02:52.2]} 7.
Rb1 {[%clk 0:02:54.6]} 7... e5 {[%clk 0:02:51.5]} 8. b4 {[%clk 0:02:54.3]} 8...
h6 {[%clk 0:02:52]} 9. b5 {[%clk 0:02:52.6]} 9... Ne7 {[%clk 0:02:52]} 10. a4
{[%clk 0:02:50.4]} 10... Be6 {[%clk 0:02:51.7]} 11. d3 {[%clk 0:02:47.9]} 11...
Qd7 {[%clk 0:02:51.1]} 12. Re1 {[%clk 0:02:46.2]} 12... Bh3 {[%clk 0:02:50.4]}
13. Bh1 {[%clk 0:02:45.6]} 13... Ng4 {[%clk 0:02:41.5]} 14. Ba3 {[%clk
0:02:42.9]} 14... Rab8 {[%clk 0:02:29.8]} 15. a5 {[%clk 0:02:05]} 15... Kh7
{[%clk 0:02:28.3]} 16. b6 {[%clk 0:02:03.3]} 16... axb6 {[%clk 0:02:13.9]} 17.
axb6 {[%clk 0:02:04.2]} 17... c5 {[%clk 0:01:55.1]} 18. Ne4 {[%clk 0:01:53.3]}
18... Nf6 {[%clk 0:01:41.8]} 19. Nxf6+ {[%clk 0:01:42.9]} 19... Bxf6 {[%clk
0:01:41.9]} 20. Nd2 {[%clk 0:01:43.6]} 20... Bg7 {[%clk 0:01:39]} 21. Qb3 {[%clk
0:01:38]} 21... Ra8 {[%clk 0:01:35.3]} 22. Bb2 {[%clk 0:01:34.6]} 22... Nc6
{[%clk 0:01:34.3]} 23. Ra1 {[%clk 0:01:30.1]} 23... f5 {[%clk 0:01:13]} 24. Qb5
{[%clk 0:01:19.9]} 24... h5 {[%clk 0:00:42.9]} 25. Nf3 {[%clk 0:01:08.5]} 25...
Bh6 {[%clk 0:00:41.7]} 26. Ra7 {[%clk 0:00:48.8]} 26... Rxa7 {[%clk 0:00:32.3]}
27. bxa7 {[%clk 0:00:48.8]} 27... Ra8 {[%clk 0:00:32.4]} 28. Ra1 {[%clk
0:00:39.8]} 28... f4 {[%clk 0:00:32.5]} 29. Nh4 {[%clk 0:00:24.6]} 29... Rxa7
{[%clk 0:00:27.4]} 30. Rxa7 {[%clk 0:00:13.2]} 30... Nxa7 {[%clk 0:00:28.3]} 31.
Qxd7+ {[%clk 0:00:13.2]} 31... Bxd7 {[%clk 0:00:28.8]} 32. Bxb7 {[%clk
0:00:13.7]} 32... fxg3 {[%clk 0:00:26.6]} 33. hxg3 {[%clk 0:00:13.6]} 33... Nc6
{[%clk 0:00:24.1]} 34. Bc3 {[%clk 0:00:07.9]} 34... Nd4 {[%clk 0:00:22.2]} 35.
Bxd4 {[%clk 0:00:07.7]} 35... exd4 {[%clk 0:00:22.4]} 36. Be4 {[%clk 0:00:08.5]}
36... Be8 {[%clk 0:00:22.6]} 37. Kg2 {[%clk 0:00:08.8]} 37... Bg5 {[%clk
0:00:22.4]} 38. Nf3 {[%clk 0:00:09.2]} 38... Bf6 {[%clk 0:00:22.6]} 39. Nd2
{[%clk 0:00:09.6]} 39... Kg7 {[%clk 0:00:22.9]} 40. Bf3 {[%clk 0:00:09.9]} 40...
g5 {[%clk 0:00:21.7]} 41. Bd5 {[%clk 0:00:09.4]} 41... Be7 {[%clk 0:00:20.3]}
42. Ne4 {[%clk 0:00:09.6]} 42... g4 {[%clk 0:00:19.7]} 43. Nd2 {[%clk
0:00:09.3]} 43... Kf6 {[%clk 0:00:18.6]} 44. Ne4+ {[%clk 0:00:09.3]} 44... Ke5
{[%clk 0:00:19.1]} 45. Nd2 {[%clk 0:00:10.2]} 45... Ba4 {[%clk 0:00:18.1]} 46.
f4+ {[%clk 0:00:08]} 46... Kf5 {[%clk 0:00:11.9]} 47. Be4+ {[%clk 0:00:07.9]}
47... Kf6 {[%clk 0:00:12.3]} 48. Bd5 {[%clk 0:00:07.9]} 48... Kg7 {[%clk
0:00:10.4]} 49. Ne4 {[%clk 0:00:08]} 49... Bd1 {[%clk 0:00:09.2]} 50. Kf2 {[%clk
0:00:08.1]} 50... Ba4 {[%clk 0:00:09.9]} 51. f5 {[%clk 0:00:08.3]} 51... Bd7
{[%clk 0:00:09.3]} 52. f6+ {[%clk 0:00:08.8]} 52... Bxf6 {[%clk 0:00:09.1]} 53.
Nxd6 {[%clk 0:00:09.6]} 53... h4 {[%clk 0:00:05.5]} 54. Ne4 {[%clk 0:00:07.8]}
54... Be7 {[%clk 0:00:03.3]} 55. gxh4 {[%clk 0:00:06.4]} 55... Bxh4+ {[%clk
0:00:04.2]} 56. Kg2 {[%clk 0:00:06.6]} 56... Be7 {[%clk 0:00:04.7]} 57. Nf2
{[%clk 0:00:04.8]} 57... Kg6 {[%clk 0:00:04.6]} 58. Be4+ {[%clk 0:00:05.3]}
58... Kg5 {[%clk 0:00:04.8]} 59. Bd5 {[%clk 0:00:02.8]} 59... Kf4 {[%clk
0:00:04.7]} 60. Ne4 {[%clk 0:00:03.3]} 60... Bf5 {[%clk 0:00:04.7]} 61. Kf1
{[%clk 0:00:03.2]} 61... Ke3 {[%clk 0:00:04.2]} 62. Bc6 {[%clk 0:00:03.9]} 62...
Bxe4 {[%clk 0:00:03.2]} 63. Bxe4 {[%clk 0:00:03.6]} 63... g3 {[%clk 0:00:03.6]}
64. Bf3 {[%clk 0:00:04]} 64... Bd6 {[%clk 0:00:04.1]} 65. Kg2 {[%clk 0:00:04.4]}
65... Be5 {[%clk 0:00:04.7]} 66. Kh3 {[%clk 0:00:05.1]} 66... Bd6 {[%clk
0:00:05]} 67. Kg2 {[%clk 0:00:05.6]} 67... Be5 {[%clk 0:00:05.3]} 68. Bg4 {[%clk
0:00:06.1]} 68... Kf4 {[%clk 0:00:05]} 69. Bf3 {[%clk 0:00:06.7]} 69... Ke3
{[%clk 0:00:05.6]} 1/2-1/2